fUSD/lending_fUSD_20260118
["ID","MTS","AMOUNT","RATE_DAILY","PERIOD"]
[402577907,1768710694242,-4800.19757223,0.00017865,2]
[402577908,1768710694253,-7180.8084871,0.00017865,2]
[402577909,1768710694264,-9715.8798,0.00017865,2]
[402577910,1768710694275,-1500.0,0.00017868,2]
[402577911,1768710694285,-1500.0,0.00017868,2]
[402577912,1768710694294,-14072.4742313,0.00017877,2]
[402577913,1768710694304,-150.0,0.00017878,2]
[402577914,1768710694313,-150.0,0.00017883,2]
[402577915,1768710694323,-150.0,0.00017884,2]
[402577916,1768710694334,-150.0,0.00017886,2]
[402577917,1768710694344,-150.0,0.00017887,2]
[402577918,1768710694354,-300.2,0.00017888,2]
[402577919,1768710694363,-175.74290063,0.000179,2]
[402577920,1768710694372,-1053.13,0.000179,2]
[402577921,1768710694382,-151.0,0.000179,2]
[402577922,1768710694391,-151.0,0.000179,2]
[402577923,1768710694401,-151.0,0.000179,2]
[402577924,1768710694410,-174.575979,0.000179,2]
[402577925,1768710694420,-151.0,0.000179,2]
[402577926,1768710694430,-271.064633,0.000179,2]
[402577927,1768710694439,-151.0,0.000179,2]
[402577928,1768710694448,-487.111718,0.000179,2]
[402577929,1768710694458,-177.784393,0.000179,2]
[402577930,1768710694467,-487.111718,0.000179,2]
[402577931,1768710694476,-177.784393,0.000179,2]
[402577932,1768710694486,-487.111718,0.000179,2]
[402577933,1768710694495,-177.784393,0.000179,2]
[402577934,1768710694505,-487.111718,0.000179,2]
[402577935,1768710694514,-177.784393,0.000179,2]
[402577936,1768710694524,-151.0,0.000179,2]
[402577937,1768710694534,-151.165997,0.000179,2]
[402577938,1768710694543,-151.0,0.000179,2]
[402577939,1768710694552,-151.0,0.000179,2]
[402577940,1768710694561,-151.165997,0.000179,2]
[402577941,1768710694570,-151.0,0.000179,2]
[402577942,1768710694580,-151.0,0.000179,2]
[402577943,1768710694589,-151.0,0.000179,2]
[402577944,1768710694598,-151.165997,0.000179,2]
[402577945,1768710694610,-285.574657,0.000179,2]
[402577946,1768710694620,-286.961642,0.000179,2]
[402577947,1768710694630,-151.165997,0.000179,2]
[402577948,1768710694639,-180.806476,0.000179,2]
[402577949,1768710694648,-151.0,0.000179,2]
[402577950,1768710694658,-243.879286,0.000179,2]
[402577951,1768710694670,-151.0,0.000179,2]
[402577952,1768710694679,-151.0,0.000179,2]
[402577953,1768710694689,-151.0,0.000179,2]
[402577954,1768710694698,-151.0,0.000179,2]
[402577955,1768710694708,-151.0,0.000179,2]
[402577956,1768710694718,-170.28722,0.000179,2]
[402577957,1768710694727,-151.0,0.000179,2]
[402577958,1768710694738,-151.0,0.000179,2]
[402577959,1768710694748,-151.0,0.000179,2]
[402577960,1768710694757,-151.0,0.000179,2]
[402577961,1768710694766,-151.0,0.000179,2]
[402577962,1768710694774,-299.56354,0.000179,2]
[402577963,1768710694784,-151.0,0.000179,2]
[402577964,1768710694794,-151.0,0.000179,2]
[402577965,1768710694803,-151.0,0.000179,2]
[402577966,1768710694812,-151.0,0.000179,2]
[402577967,1768710694821,-151.0,0.000179,2]
[402577968,1768710694831,-151.0,0.000179,2]
[402577969,1768710694840,-23040.60284048,0.000179,2]
[402577970,1768710694850,-911.0,0.000179,2]
[402577971,1768710694859,-1200.0,0.000179,6]
[402577972,1768710694869,-980.0,0.000179,2]
[402577973,1768710694879,-184.34521573,0.000179,2]
[402577974,1768710694889,-229.70634107,0.000179,2]
[402577975,1768710694898,-307.0,0.000179,2]
[402577976,1768710694908,-150.0,0.00017915,2]
[402577977,1768710694917,-1375.0,0.00017918,2]
[402577978,1768710694927,-500.0,0.00017918,2]
[402577979,1768710694936,-500.0,0.00017918,2]
[402577980,1768710694947,-552.0,0.00017918,2]
[402577981,1768710694957,-160.8165198,0.00017918,2]
[402577982,1768710694967,-500.0,0.00017918,2]
[402577983,1768710694976,-150.0,0.00017939,2]
[402577984,1768710694986,-150.0,0.00017944,2]
[402577985,1768710694996,-219.88000595,0.00017945,2]
[402577986,1768710695006,-5845.0,0.00017957,2]
[402577987,1768710695015,-1375.0,0.00017972,2]
[402577988,1768710695025,-500.0,0.00017972,2]
[402577989,1768710695035,-150.0,0.00017973,2]
[402577990,1768710695046,-150.0,0.00017973,2]
[402577991,1768710695055,-150.0,0.00017973,2]
[402577992,1768710695065,-265.5663701,0.00017973,2]
[402577993,1768710695076,-236.45405301,0.00017973,2]
[402577994,1768710695085,-150.39481531,0.00017973,2]
[402577995,1768710695094,-150.62813761,0.00017973,2]
[402577996,1768710695104,-170.37649706,0.00017973,2]
[402577997,1768710695114,-150.48546304,0.00017973,2]
[402577998,1768710695124,-150.0,0.00017973,2]
[402577999,1768710695134,-183.0442413,0.00017973,2]
[402578000,1768710695219,-260.0787234,0.00017973,2]
[402578001,1768710695229,-150.0,0.00017973,2]
[402578002,1768710695239,-500.0,0.00017973,2]
[402578003,1768710695250,-552.0,0.00017973,2]
[402578004,1768710695259,-500.0,0.00017973,2]
[402578005,1768710695268,-500.0,0.00017973,2]
[402578006,1768710695278,-150.0,0.00017973,2]
[402578007,1768710695287,-205.78201,0.00017973,2]
[402578008,1768710695296,-205.78201,0.00017973,2]
[402578009,1768710695306,-205.78201,0.00017973,2]
[402578010,1768710695315,-205.782003,0.00017973,2]
[402578011,1768710695325,-151.0,0.00017973,2]
[402578012,1768710695334,-553.420578,0.00017973,2]
[402578013,1768710695343,-151.0,0.00017973,2]
[402578014,1768710695352,-553.420578,0.00017973,2]
[402578015,1768710695363,-162.825338,0.00017973,2]
[402578016,1768710695372,-977.460173,0.00017973,2]
[402578017,1768710695381,-553.420578,0.00017973,2]
[402578018,1768710695390,-233.146319,0.00017973,2]
[402578019,1768710695400,-151.0,0.00017973,2]
[402578020,1768710695410,-977.460173,0.00017973,2]
[402578021,1768710695419,-553.420581,0.00017973,2]
[402578022,1768710695430,-233.146319,0.00017973,2]
[402578023,1768710695439,-977.460173,0.00017973,2]
[402578024,1768710695449,-185.649306,0.00017973,2]
[402578025,1768710695458,-233.146319,0.00017973,2]
[402578026,1768710695468,-977.4601631,0.00017973,2]
[402578027,1768710695478,-233.146311,0.00017973,2]
[402578028,1768710695488,-151.0,0.00017973,2]
[402578029,1768710695498,-151.0,0.00017973,2]
[402578030,1768710695508,-151.0,0.00017973,2]
[402578031,1768710695517,-311.947745,0.00017973,2]
[402578032,1768710695528,-311.947745,0.00017973,2]
[402578033,1768710695538,-1404.709489,0.00017973,2]
[402578034,1768710695547,-311.947745,0.00017973,2]
[402578035,1768710695557,-1404.709489,0.00017973,2]
[402578036,1768710695566,-311.947744,0.00017973,2]
[402578037,1768710695576,-1404.709489,0.00017973,2]
[402578038,1768710695585,-1404.70949546,0.00017973,2]
[402578039,1768710695595,-662.081173,0.00017973,2]
[402578040,1768710695603,-550.041578,0.00017973,2]
[402578041,1768710695612,-662.081173,0.00017973,2]
[402578042,1768710695621,-550.041578,0.00017973,2]
[402578043,1768710695631,-662.081173,0.00017973,2]
[402578044,1768710695640,-550.041578,0.00017973,2]
[402578045,1768710695649,-662.08117,0.00017973,2]
[402578046,1768710695659,-550.04158,0.00017973,2]
[402578047,1768710695670,-151.0,0.00017973,2]
[402578048,1768710695680,-151.0,0.00017973,2]
[402578049,1768710695689,-151.0,0.00017973,2]
[402578050,1768710695698,-151.0,0.00017973,2]
[402578051,1768710695707,-538.606649,0.00017973,2]
[402578052,1768710695716,-538.606649,0.00017973,2]
[402578053,1768710695727,-538.606649,0.00017973,2]
[402578054,1768710695736,-538.606642,0.00017973,2]
[402578055,1768710695745,-151.0,0.00017973,2]
[402578056,1768710695755,-220.77937921,0.00017976,2]
[402578057,1768710695764,-502.40277933,0.00017993,2]
[402578058,1768710695773,-500.0,0.00017993,2]
[402578059,1768710695782,-500.0,0.00017993,2]
[402578060,1768710695792,-506.97630376,0.00017993,2]
[402578061,1768710695801,-250.0,0.00017994,2]
[402578062,1768710695810,-124163.4319297,0.00017994,2]
[402578063,1768710695819,-1275.61846148,0.00017994,2]
[402578064,1768710695829,-200.0,0.00017994,2]
[402578065,1768710695838,-188.699403,0.00017994,2]
[402578066,1768710695847,-468.422136,0.00017994,2]
[402578067,1768710695857,-151.0,0.00017994,2]
[402578068,1768710695868,-468.422136,0.00017994,2]
[402578069,1768710695878,-468.422136,0.00017994,2]
[402578070,1768710695889,-151.0,0.00017994,2]
[402578071,1768710695899,-318.020054,0.00017994,2]
[402578072,1768710695908,-151.0,0.00017994,2]
[402578073,1768710695917,-318.020054,0.00017994,2]
[402578074,1768710695926,-318.020054,0.00017994,2]
[402578075,1768710695935,-318.020054,0.00017994,2]
[402578076,1768710695945,-151.0,0.00017994,2]
[402578077,1768710695954,-255.647116,0.00017994,2]
[402578078,1768710695964,-255.647116,0.00017994,2]
[402578079,1768710695974,-255.647116,0.00017994,2]
[402578080,1768710695984,-255.647116,0.00017994,2]
[402578081,1768710695993,-157.618542,0.00017994,2]
[402578082,1768710696003,-469.782803,0.00017994,2]
[402578083,1768710696012,-469.782803,0.00017994,2]
[402578084,1768710696022,-778.829852,0.00017994,2]
[402578085,1768710696031,-469.782803,0.00017994,2]
[402578086,1768710696041,-778.829852,0.00017994,2]
[402578087,1768710696050,-469.782801,0.00017994,2]
[402578088,1768710696059,-778.829852,0.00017994,2]
[402578089,1768710696069,-778.82985,0.00017994,2]
[402578090,1768710696078,-622.302096,0.00017994,2]
[402578091,1768710696088,-622.302096,0.00017994,2]
[402578092,1768710696097,-622.302096,0.00017994,2]
[402578093,1768710696106,-151.0,0.00017994,2]
[402578094,1768710696116,-518.949059,0.00017994,2]
[402578095,1768710696125,-622.302087,0.00017994,2]
[402578096,1768710696135,-518.949059,0.00017994,2]
[402578097,1768710696144,-500.0,0.00017999,2]
[402578098,1768710696153,-500.0,0.00017999,2]
[402578099,1768710696162,-300.0,0.00017999,2]
[402578100,1768710696172,-300.0,0.00017999,2]
[402578101,1768710696181,-558.7798383,0.00017999,2]
[402578102,1768710696191,-500.0,0.00017999,2]
[402578103,1768710696200,-500.0,0.00017999,2]
[402578104,1768710696210,-550.95234018,0.00017999,2]
[402578105,1768710696219,-2647121.0750185,0.00018,2]
[402578106,1768710696757,-290.03433383,0.00014146,2]
[402578107,1768710696767,-235.304351,0.00016986,2]
[402578108,1768710696776,-451.66477222,0.0001726,2]
[402578109,1768710696786,-67.28428678,0.0001726,2]
[402578110,1768710696795,-955.24391935,0.00018,2]
[402578111,1768710696868,-500.0,0.0001726,2]
[402578112,1768710696877,-3230.93908432,0.00018,2]
[402578113,1768710696889,-15941.23605073,0.00018,2]
[402578114,1768710696910,-518.949059,0.00017808,2]
[402578115,1768710696920,-439.2170587,0.00018,2]
[402578116,1768710696932,-1605.986275,0.00018,2]
[402578117,1768710697596,-500.0,0.00016438,2]
[402578118,1768710697606,-500.0,0.00016438,2]
[402578119,1768710697616,-500.0,0.00016438,2]
[402578120,1768710697625,-500.0,0.00016438,2]
[402578121,1768710697634,-500.0,0.00016712,2]
[402578122,1768710697643,-863.424849,0.00016712,2]
[402578123,1768710697653,-518.949059,0.00016712,2]
[402578124,1768710697665,-235.304351,0.00016712,2]
[402578125,1768710697673,-500.0,0.00016712,2]
[402578126,1768710697682,-863.424849,0.00016712,2]
[402578127,1768710697691,-500.0,0.00016712,2]
[402578128,1768710697700,-606.672925,0.00016712,2]
[402578129,1768710697726,-1544.046644,0.00016712,2]
[402578130,1768710697735,-235.304351,0.00016712,2]
[402578131,1768710697744,-500.0,0.00016986,2]
[402578132,1768710697753,-863.424849,0.00016986,2]
[402578133,1768710697763,-518.949059,0.00016986,2]
[402578134,1768710697773,-500.0,0.00016986,2]
[402578135,1768710697782,-235.304351,0.00016986,2]
[402578136,1768710697792,-863.424849,0.00016986,2]
[402578137,1768710697801,-500.0,0.00016986,2]
[402578138,1768710697811,-235.304351,0.0001726,2]
[402578139,1768710697821,-376.78415046,0.0001726,2]
[402578140,1768710697832,-123.21584954,0.0001726,2]
[402578141,1768710697842,-863.424849,0.0001726,2]
[402578142,1768710697852,-507.54540217,0.0001726,2]
[402578143,1768710697873,-1158.32246074,0.00016986,2]
[402578144,1768710697924,-428.42867099,0.00016438,2]
[402578145,1768710697935,-71.57132901,0.00016438,2]
[402578146,1768710697945,-609.19142754,0.00016986,2]
[402578147,1768710698475,-151.0,0.00014964,2]
[402578148,1768710698485,-151.0,0.00014964,2]
[402578149,1768710698495,-500.0,0.00016438,2]
[402578150,1768710698505,-208.93885218,0.00016438,2]
[402578151,1768710698519,-291.06114782,0.00016438,2]
[402578152,1768710698529,-500.0,0.00016712,2]
[402578153,1768710698539,-47.45885918,0.00016712,2]
[402578154,1768710698562,-103.54114082,0.00016712,2]
[402578155,1768710698572,-863.424849,0.00016712,2]
[402578156,1768710698581,-151.0,0.00016712,2]
[402578157,1768710698591,-2150.719569,0.00016712,2]
[402578158,1768710698601,-500.0,0.00016712,2]
[402578159,1768710698611,-235.304351,0.00016712,2]
[402578160,1768710698620,-151.0,0.00016712,2]
[402578161,1768710698630,-863.424849,0.00016712,2]
[402578162,1768710698640,-151.0,0.00016712,2]
[402578163,1768710698653,-500.0,0.00016712,2]
[402578164,1768710698665,-1127.44476932,0.00016712,2]
[402578165,1768710698676,-1023.27479968,0.00016712,2]
[402578166,1768710698686,-383.20568072,0.00016986,2]
[402578167,1768710698695,-235.304351,0.00016986,2]
[402578168,1768710698705,-151.0,0.00016986,2]
[402578169,1768710698715,-863.424849,0.00016986,2]
[402578170,1768710698724,-151.0,0.00016986,2]
[402578171,1768710698734,-2150.719569,0.00016986,2]
[402578172,1768710698745,-235.304351,0.00016986,2]
[402578173,1768710698755,-151.0,0.00016986,2]
[402578174,1768710698764,-863.424849,0.00016986,2]
[402578175,1768710698775,-151.0,0.00016986,2]
[402578176,1768710698785,-179.57,0.00017178,2]
[402578177,1768710698796,-935.49,0.00017178,2]
[402578178,1768710698806,-11.40365683,0.0001726,2]
[402578179,1768710698816,-500.0,0.0001726,2]
[402578180,1768710698826,-235.304351,0.0001726,2]
[402578181,1768710698835,-500.0,0.0001726,2]
[402578182,1768710698845,-863.424849,0.0001726,2]
[402578183,1768710698855,-2150.719569,0.0001726,2]
[402578184,1768710698866,-235.304351,0.0001726,2]
[402578185,1768710698876,-151.0,0.0001726,2]
[402578186,1768710698886,-863.424849,0.0001726,2]
[402578187,1768710698896,-151.0,0.0001726,2]
[402578188,1768710698906,-2150.719569,0.0001726,2]
[402578189,1768710698916,-235.304351,0.0001726,2]
[402578190,1768710698925,-863.424849,0.0001726,2]
[402578191,1768710698935,-711.74031536,0.00017434,2]
[402578192,1768710698947,-500.0,0.00017534,2]
[402578193,1768710698957,-500.0,0.00017534,2]
[402578194,1768710698967,-500.0,0.00017534,2]
[402578195,1768710698978,-500.0,0.00017534,2]
[402578196,1768710698988,-711.74031534,0.00017667,2]
[402578197,1768710698998,-500.0,0.00017808,2]
[402578198,1768710699008,-235.304351,0.00017808,2]
[402578199,1768710699018,-863.424849,0.00017808,2]
[402578200,1768710699028,-500.0,0.00017808,2]
[402578201,1768710699039,-518.949059,0.00017808,2]
[402578202,1768710699050,-500.0,0.00017808,2]
[402578203,1768710699060,-235.304351,0.00017808,2]
[402578204,1768710699071,-863.424849,0.00017808,2]
[402578205,1768710699082,-500.0,0.00017808,2]
[402578206,1768710699093,-2150.719569,0.00017808,2]
[402578207,1768710699103,-235.304351,0.00017808,2]
[402578208,1768710699114,-151.0,0.00017808,2]
[402578209,1768710699124,-863.424849,0.00017808,2]
[402578210,1768710699134,-151.0,0.00017808,2]
[402578211,1768710699144,-2150.719569,0.00017808,2]
[402578212,1768710699154,-235.304351,0.00017808,2]
[402578213,1768710699165,-518.949059,0.00017994,2]
[402578214,1768710699175,-235.304351,0.00017994,2]
[402578215,1768710699185,-863.424849,0.00017994,2]
[402578216,1768710699195,-393.01657335,0.00017994,2]
[402578217,1768710699213,-2150.719569,0.00016986,2]
[402578218,1768710699223,-125.93248265,0.00017994,2]
[402578219,1768710699232,-235.304351,0.00017994,2]
[402578220,1768710699242,-863.424849,0.00017994,2]
[402578221,1768710699252,-2150.719569,0.00017994,2]
[402578222,1768710699265,-235.304351,0.00017994,2]
[402578223,1768710699274,-151.0,0.00017994,2]
[402578224,1768710699284,-863.424849,0.00017994,2]
[402578225,1768710699294,-151.0,0.00017994,2]
[402578226,1768710699303,-2150.719569,0.00017994,2]
[402578227,1768710699313,-235.30436,0.00017994,2]
[402578228,1768710699323,-62320.90032961,0.00018,2]
[402578229,1768710699335,-500.0,0.00018,2]
[402578230,1768710699416,-500.0,0.00016438,2]
[402578231,1768710699426,-151.0,0.0001726,2]
[402578232,1768710699436,-2150.719569,0.0001726,2]
[402578233,1768710699446,-566.0,0.00017311,2]
[402578234,1768710699455,-863.424849,0.00017808,2]
[402578235,1768710699465,-151.0,0.00017808,2]
[402578236,1768710699475,-720.855582,0.00017808,2]
[402578237,1768710699487,-1429.863987,0.00017808,2]
[402578238,1768710699497,-863.424847,0.00017994,2]
[402578239,1768710699507,-2882.17382162,0.00018,2]
[402578240,1768710699538,-151.0,0.00017994,2]
[402578241,1768710699549,-2150.719569,0.00017994,2]
[402578242,1768710699559,-12137.9651973,0.00018,2]
[402578243,1768710699571,-980.2307482,0.00018,2]
[402578244,1768710752011,600.0,0.00027397,120]
[402578246,1768710825629,150.83198042,0.00027397,120]
[402578247,1768710833892,200.0,0.000139,5]
[402578251,1768710894836,600.0,0.00027397,120]
[402578252,1768710905300,10000.0,0.00027397,120]
[402578260,1768710921496,514.0,0.00027397,120]
[402578265,1768710938944,-150.0,0.00013943,2]
[402578266,1768710938975,-300.0,0.00013943,2]
[402578267,1768710939002,-50.0,0.00013943,2]
[402578268,1768710939050,-309.0,0.00013943,2]
[402578269,1768710939077,-191.0,0.00013943,2]
[402578270,1768710939138,-458.73798315,0.00013943,2]
[402578271,1768711192316,739.52406,0.00027397,120]
[402578274,1768711643882,400.0,0.000139,5]
[402578275,1768711654367,600.0,0.00027397,120]
[402578276,1768711707038,158.01,0.00010677,2]
[402578277,1768711717366,-1000.0,0.00013346,2]
[402578278,1768711745102,-4610.110708,0.00013452,2]
[402578292,1768711832299,-649.199292,0.00013452,2]
[402578293,1768711832310,-179.225,0.00013666,2]
[402578294,1768711832320,-840.788,0.00013666,2]
[402578295,1768711832329,-879.52635949,0.00013743,2]
[402578296,1768711832340,-608.65218901,0.00013743,2]
[402578297,1768711832352,-1023.31953828,0.00013743,2]
[402578298,1768711832363,-977.95038533,0.00013743,2]
[402578299,1768711832374,-1131.92990948,0.00013743,2]
[402578300,1768711832386,-1321.76174777,0.00013743,2]
[402578301,1768711832395,-848.37295405,0.00013743,2]
[402578302,1768711832428,-377.28617333,0.00013743,2]
[402578303,1768711832439,-1200.0,0.00013791,2]
[402578304,1768711832449,-103.3811828,0.00013791,2]
[402578305,1768711832462,-196.6188172,0.00013791,2]
[402578306,1768711832472,-151.0,0.00013835,2]
[402578307,1768711832482,-623.52918681,0.00013838,2]
[402578308,1768711832493,-2939.56562393,0.00013838,2]
[402578309,1768711832504,-2418.70405355,0.00013838,2]
[402578310,1768711832524,-397.84647269,0.00013838,2]
[402578311,1768711832535,-3254.51138063,0.00013838,2]
[402578312,1768711832547,-1516.48438079,0.00013838,2]
[402578313,1768711832558,-387.11639996,0.00013838,2]
[402578314,1768711832569,-2898.9649607,0.00013838,2]
[402578315,1768711832584,-297.04785907,0.00013838,2]
[402578316,1768711832596,-86274.88551958,0.00013838,2]
[402578317,1768711832607,-23994.61917378,0.00013838,2]
[402578318,1768711832619,-10698.14485291,0.00013838,2]
[402578319,1768711832630,-43186.93193731,0.00013838,2]
[402578320,1768711832641,-2151.7138018,0.00013838,2]
[402578321,1768711832667,-1958.42417155,0.00013838,2]
[402578323,1768711837714,-278.1922511,0.00013837,2]
[402578324,1768711837725,-198.74733426,0.00013837,2]
[402578325,1768711837736,-500.0,0.00013837,2]
[402578326,1768711837746,-511.73035149,0.00013837,2]
[402578327,1768711837757,-500.0,0.00013837,2]
[402578328,1768711837767,-500.0,0.00013837,2]
[402578329,1768711837777,-358.04263979,0.00013837,2]
[402578330,1768711837789,-141.95736021,0.00013837,2]
[402578331,1768711837799,-624.58006001,0.00013837,2]
[402578332,1768711837808,-500.0,0.00013837,2]
[402578333,1768711837818,-500.0,0.00013837,2]
[402578334,1768711837828,-500.0,0.00013837,2]
[402578335,1768711837838,-500.0,0.00013837,2]
[402578336,1768711837848,-500.0,0.00013837,2]
[402578337,1768711837858,-500.0,0.00013837,2]
[402578338,1768711837868,-500.0,0.00013837,2]
[402578339,1768711837877,-500.0,0.00013837,2]
[402578340,1768711837887,-500.0,0.00013837,2]
[402578341,1768711837897,-500.0,0.00013837,2]
[402578342,1768711837909,-500.0,0.00013837,2]
[402578343,1768711837918,-500.0,0.00013837,2]
[402578344,1768711837928,-500.0,0.00013837,2]
[402578345,1768711837937,-500.0,0.00013837,2]
[402578346,1768711837948,-500.0,0.00013837,2]
[402578347,1768711837958,-54528.59764553,0.00013838,2]
[402578348,1768711837974,-2887.62734882,0.00013838,2]
[402578351,1768711840107,-759585.28523059,0.00013838,2]
[402578352,1768711840118,-150.0,0.00013843,2]
[402578353,1768711840127,-207.10004465,0.00013847,2]
[402578354,1768711840137,-500.0,0.00013936,2]
[402578355,1768711840147,-500.0,0.00013936,2]
[402578356,1768711840157,-500.0,0.00013936,2]
[402578357,1768711840167,-500.0,0.00013936,2]
[402578358,1768711840177,-500.0,0.00013936,2]
[402578359,1768711840186,-500.0,0.00013936,2]
[402578360,1768711840196,-500.0,0.00013936,2]
[402578361,1768711840205,-500.0,0.00013936,2]
[402578362,1768711840215,-500.0,0.00013936,2]
[402578363,1768711840224,-500.0,0.00013936,2]
[402578364,1768711840234,-500.0,0.00013936,2]
[402578365,1768711840243,-223.37176403,0.00013936,2]
[402578366,1768711840252,-513.33860981,0.00013936,2]
[402578367,1768711840262,-151.0,0.00013936,2]
[402578368,1768711840271,-151.0,0.00013936,2]
[402578369,1768711840280,-151.0,0.00013936,2]
[402578370,1768711840289,-151.0,0.00013936,2]
[402578371,1768711840302,-151.0,0.00013936,2]
[402578372,1768711840311,-151.0,0.00013936,2]
[402578373,1768711840320,-151.0,0.00013936,2]
[402578374,1768711840329,-151.0,0.00013936,2]
[402578375,1768711840339,-151.0,0.00013936,2]
[402578376,1768711840349,-151.0,0.00013936,2]
[402578377,1768711840359,-151.0,0.00013936,2]
[402578378,1768711840368,-238.82288942,0.00013938,2]
[402578380,1768711840378,-9999.99,0.00013938,2]
[402578381,1768711840388,-150.99,0.00013944,2]
[402578382,1768711840396,-500.0,0.00013944,2]
[402578383,1768711840405,-500.0,0.00013944,2]
[402578384,1768711840414,-500.0,0.00013944,2]
[402578385,1768711840423,-500.0,0.00013944,2]
[402578386,1768711840432,-525.87218236,0.00013944,2]
[402578387,1768711840442,-500.0,0.00013944,2]
[402578388,1768711840451,-500.0,0.00013944,2]
[402578389,1768711840460,-509.37476542,0.00013944,2]
[402578390,1768711840469,-500.0,0.00013944,2]
[402578391,1768711840478,-592.82762265,0.00013944,2]
[402578392,1768711840487,-528.10956924,0.00013944,2]
[402578393,1768711840496,-31098.50559636,0.00013947,2]
[402578394,1768711840506,-1000.0,0.00014047,2]
[402578395,1768711840515,-166.67,0.00014074,2]
[402578396,1768711840524,-500.0,0.00014146,2]
[402578397,1768711840533,-502.40277933,0.00014146,2]
[402578398,1768711840543,-500.0,0.00014146,2]
[402578399,1768711840552,-500.0,0.00014146,2]
[402578400,1768711840561,-558.7798383,0.00014146,2]
[402578401,1768711840571,-500.0,0.00014146,2]
[402578402,1768711840580,-500.0,0.00014146,2]
[402578403,1768711840590,-500.0,0.00014146,2]
[402578404,1768711840599,-500.0,0.00014146,2]
[402578405,1768711840608,-500.0,0.00014146,2]
[402578406,1768711840618,-506.97630376,0.00014146,2]
[402578407,1768711840627,-500.0,0.00014146,2]
[402578408,1768711840636,-500.0,0.00014146,2]
[402578409,1768711840645,-500.0,0.00014146,2]
[402578410,1768711840655,-500.0,0.00014146,2]
[402578411,1768711840664,-5943.14012927,0.00014205,2]
[402578412,1768711840673,-52035.49791672,0.00014255,2]
[402578413,1768711840686,-1225.65912734,0.00014337,2]
[402578414,1768711840695,-31098.50559629,0.00014386,2]
[402578415,1768711840705,-550.95234018,0.0001452,2]
[402578416,1768711840714,-500.0,0.0001452,2]
[402578417,1768711840723,-238.82288939,0.00014598,2]
[402578418,1768711840732,-5943.14012927,0.00014667,2]
[402578419,1768711840742,-250.0,0.00014797,2]
[402578420,1768711840751,-775.47259016,0.00014815,2]
[402578421,1768711840760,-31098.50559629,0.00014825,2]
[402578422,1768711840769,-900.0,0.000149,5]
[402578423,1768711840779,-1225.65912734,0.00014931,2]
[402578424,1768711840788,-255.0,0.00014964,2]
[402578425,1768711840797,-1000.0,0.00015015,2]
[402578426,1768711840806,-151.0,0.00015031,2]
[402578427,1768711840815,-151.0,0.00015031,2]
[402578428,1768711840825,-151.0,0.00015045,2]
[402578429,1768711840834,-151.0,0.00015045,2]
[402578430,1768711840844,-467.15,0.00015068,2]
[402578431,1768711840855,-207.10004465,0.00015093,2]
[402578432,1768711840865,-5943.14012927,0.00015129,2]
[402578433,1768711840874,-1680.0,0.0001517,2]
[402578434,1768711840883,-1678.70593278,0.00015182,2]
[402578435,1768711840892,-166.67,0.00015236,2]
[402578436,1768711840901,-238.82288939,0.00015259,2]
[402578437,1768711840910,-31098.50559629,0.00015265,2]
[402578438,1768711840919,-4367.74,0.00015292,2]
[402578439,1768711840928,-761.99574547,0.00015317,2]
[402578440,1768711840938,-710.18,0.00015455,2]